[Event "November 21 Early 2023"]
[Site "https://www.chess.com"]
[Date "2023.11.21"]
[Round "1"]
[White "FoxOnTheRun97"]
[Black "Kornyukov, Alexey"]
[Result "0-1"]
[Board "177"]
[TimeControl "180+1"]
[BlackFideId "4150457"]
[WhiteElo "2603"]
[BlackElo "2352"]
[BlackTeam "RUS"]
[WhiteClock "0:00:06"]
[BlackClock "0:00:15"]

1. d4 {[%clk 0:03:00]}  Nf6 {[%clk 0:02:55]} 2. Bg5 {[%clk 0:03:00]}  d5 {[%clk 0:02:53]} 3. Nd2 {[%clk 0:02:59]}  h6 {[%clk 0:02:52]} 4. Bxf6 {[%clk 0:02:59]}  exf6 {[%clk 0:02:52]} 5. e3 {[%clk 0:02:59]}  Bd6 {[%clk 0:02:52]} 6. g3 {[%clk 0:02:58]}  c6 {[%clk 0:02:52]} 7. Bg2 {[%clk 0:02:59]}  Qb6 {[%clk 0:02:50]} 8. Qc1 {[%clk 0:02:44]}  Bf5 {[%clk 0:02:45]} 9. Ne2 {[%clk 0:02:36]}  O-O {[%clk 0:02:43]} 10. O-O {[%clk 0:02:31]}  Nd7 {[%clk 0:02:33]} 11. Re1 {[%clk 0:02:17]}  Rac8 {[%clk 0:02:31]} 12. c4 {[%clk 0:02:15]}  Bb4 {[%clk 0:02:06]} 13. Nc3 {[%clk 0:02:04]}  Bxc3 {[%clk 0:01:49]} 14. Qxc3 {[%clk 0:02:03]}  dxc4 {[%clk 0:01:44]} 15. Nxc4 {[%clk 0:02:04]}  Qc7 {[%clk 0:01:44]} 16. Qb4 {[%clk 0:01:48]}  Nb6 {[%clk 0:01:44]} 17. Nd6 {[%clk 0:01:21]}  Bd3 {[%clk 0:01:36]} 18. Nxc8 {[%clk 0:01:18]}  Rxc8 {[%clk 0:01:35]} 19. a4 {[%clk 0:01:13]}  Nd5 {[%clk 0:01:30]} 20. Qd2 {[%clk 0:01:12]}  Bg6 {[%clk 0:01:28]} 21. e4 {[%clk 0:01:11]}  Nb6 {[%clk 0:01:27]} 22. a5 {[%clk 0:01:10]}  Nc4 {[%clk 0:01:26]} 23. Qc3 {[%clk 0:01:01]}  Nd6 {[%clk 0:01:26]} 24. e5 {[%clk 0:01:01]}  fxe5 {[%clk 0:01:25]} 25. dxe5 {[%clk 0:01:02]}  Nb5 {[%clk 0:01:25]} 26. Qe3 {[%clk 0:00:55]}  Rd8 {[%clk 0:01:19]} 27. Red1 {[%clk 0:00:49]}  Rxd1+ {[%clk 0:01:16]} 28. Rxd1 {[%clk 0:00:50]}  Qxa5 {[%clk 0:01:16]} 29. e6 {[%clk 0:00:49]}  fxe6 {[%clk 0:01:01]} 30. Qxe6+ {[%clk 0:00:48]}  Bf7 {[%clk 0:01:01]} 31. Qc8+ {[%clk 0:00:42]}  Kh7 {[%clk 0:01:01]} 32. Be4+ {[%clk 0:00:41]}  Bg6 {[%clk 0:00:56]} 33. Bxg6+ {[%clk 0:00:33]}  Kxg6 {[%clk 0:00:56]} 34. Qe6+ {[%clk 0:00:21]}  Kh7 {[%clk 0:00:56]} 35. Qf5+ {[%clk 0:00:19]}  Kg8 {[%clk 0:00:55]} 36. Rd7 {[%clk 0:00:18]}  Qe1+ {[%clk 0:00:50]} 37. Kg2 {[%clk 0:00:18]}  Qe8 {[%clk 0:00:46]} 38. Rxb7 {[%clk 0:00:15]}  Nd6 {[%clk 0:00:43]} 39. Qd7 {[%clk 0:00:09]}  Qe4+ {[%clk 0:00:36]} 40. Kh3 {[%clk 0:00:09]}  Nxb7 {[%clk 0:00:34]} 41. Qxb7 {[%clk 0:00:10]}  Qe6+ {[%clk 0:00:34]} 42. Kg2 {[%clk 0:00:10]}  Qd5+ {[%clk 0:00:34]} 43. f3 {[%clk 0:00:08]}  a5 {[%clk 0:00:32]} 44. Qc8+ {[%clk 0:00:06]}  Kh7 {[%clk 0:00:32]} 45. Qb8 {[%clk 0:00:04]}  Qd2+ {[%clk 0:00:31]} 46. Kh3 {[%clk 0:00:04]}  Qd7+ {[%clk 0:00:30]} 47. g4 {[%clk 0:00:04]}  Qd5 {[%clk 0:00:27]} 48. Qf4 {[%clk 0:00:04]}  Qe6 {[%clk 0:00:19]} 49. Kg3 {[%clk 0:00:04]}  Qd5 {[%clk 0:00:19]} 50. h4 {[%clk 0:00:03]}  g5 {[%clk 0:00:18]} 51. Qe4+ {[%clk 0:00:02]}  Qxe4 {[%clk 0:00:18]} 52. fxe4 {[%clk 0:00:03]}  Kg6 {[%clk 0:00:17]} 53. hxg5 {[%clk 0:00:02]}  hxg5 {[%clk 0:00:17]} 54. Kf3 {[%clk 0:00:02]}  Kf7 {[%clk 0:00:17]} 55. e5 {[%clk 0:00:02]}  Ke6 {[%clk 0:00:17]} 56. Ke4 {[%clk 0:00:02]}  c5 {[%clk 0:00:16]} 57. b3 {[%clk 0:00:02]}  c4 {[%clk 0:00:14]} 58. bxc4 {[%clk 0:00:03]}  a4 {[%clk 0:00:15]} 59. c5 {[%clk 0:00:01]}  a3 {[%clk 0:00:15]} 60. c6 {[%clk 0:00:01]}  a2 {[%clk 0:00:15]} 61. c7 {[%clk 0:00:02]}  Kd7 {[%clk 0:00:16]} 62. e6+ {[%clk 0:00:02]}  Kxc7 {[%clk 0:00:16]} 63. e7 {[%clk 0:00:03]}  Kd7 {[%clk 0:00:16]} 64. Kf5 {[%clk 0:00:04]}  Kxe7 {[%clk 0:00:16]} 65. Kxg5 {[%clk 0:00:05]}  a1=Q {[%clk 0:00:17]} 66. Kg6 {[%clk 0:00:05]}  Qe5 {[%clk 0:00:17]} 67. g5 {[%clk 0:00:06]}  Qe4+ {[%clk 0:00:17]} 68. Kh6 {[%clk 0:00:07]}  Kf8 {[%clk 0:00:15]} 69. g6 {[%clk 0:00:06]}  Qh4# {[%clk 0:00:15]} 0-1

[Event "November 21 Early 2023"]
[Site "https://www.chess.com"]
[Date "2023.11.21"]
[Round "1"]
[White "Kim, Sergey"]
[Black "Hoffmann, Asa"]
[Result "0-1"]
[Board "183"]
[TimeControl "180+1"]
[WhiteFideId "13700570"]
[BlackFideId "2001470"]
[WhiteElo "2592"]
[BlackElo "2117"]
[WhiteTeam "KAZ"]
[BlackTeam "USA"]
[WhiteClock "0:00:21"]
[BlackClock "0:00:59"]

1. d4 {[%clk 0:02:58]}  Nf6 {[%clk 0:02:56]} 2. c4 {[%clk 0:02:58]}  c5 {[%clk 0:02:53]} 3. d5 {[%clk 0:02:58]}  e5 {[%clk 0:02:51]} 4. Nc3 {[%clk 0:02:57]}  d6 {[%clk 0:02:51]} 5. e4 {[%clk 0:02:57]}  Be7 {[%clk 0:02:50]} 6. g3 {[%clk 0:02:57]}  O-O {[%clk 0:02:49]} 7. Bg2 {[%clk 0:02:57]}  Na6 {[%clk 0:02:47]} 8. Nge2 {[%clk 0:02:57]}  Ne8 {[%clk 0:02:46]} 9. O-O {[%clk 0:02:56]}  Bd7 {[%clk 0:02:46]} 10. f4 {[%clk 0:02:53]}  Bf6 {[%clk 0:02:46]} 11. Be3 {[%clk 0:02:50]}  Nec7 {[%clk 0:02:46]} 12. a4 {[%clk 0:02:47]}  Nb4 {[%clk 0:02:45]} 13. Qd2 {[%clk 0:02:45]}  b6 {[%clk 0:02:45]} 14. h3 {[%clk 0:02:37]}  a6 {[%clk 0:02:44]} 15. g4 {[%clk 0:02:28]}  exf4 {[%clk 0:02:43]} 16. Nxf4 {[%clk 0:02:27]}  Qe7 {[%clk 0:02:40]} 17. Nh5 {[%clk 0:02:25]}  Be5 {[%clk 0:02:39]} 18. Bg5 {[%clk 0:02:05]}  f6 {[%clk 0:02:37]} 19. Bf4 {[%clk 0:02:04]}  b5 {[%clk 0:02:30]} 20. b3 {[%clk 0:01:56]}  bxc4 {[%clk 0:02:28]} 21. bxc4 {[%clk 0:01:56]}  Rab8 {[%clk 0:02:26]} 22. Rab1 {[%clk 0:01:55]}  Na8 {[%clk 0:02:19]} 23. Ng3 {[%clk 0:01:53]}  Nb6 {[%clk 0:02:17]} 24. Nf5 {[%clk 0:01:39]}  Bxf5 {[%clk 0:02:14]} 25. exf5 {[%clk 0:01:40]}  Nxc4 {[%clk 0:02:14]} 26. Qe2 {[%clk 0:01:40]}  Bd4+ {[%clk 0:02:00]} 27. Kh1 {[%clk 0:01:35]}  Qxe2 {[%clk 0:01:57]} 28. Nxe2 {[%clk 0:01:36]}  Nd3 {[%clk 0:01:52]} 29. Nxd4 {[%clk 0:01:24]}  cxd4 {[%clk 0:01:51]} 30. Bg3 {[%clk 0:01:24]}  Ne3 {[%clk 0:01:44]} 31. Be4 {[%clk 0:01:21]}  Nxf1 {[%clk 0:01:40]} 32. Rxf1 {[%clk 0:01:19]}  Ne5 {[%clk 0:01:37]} 33. Rd1 {[%clk 0:01:19]}  Rb3 {[%clk 0:01:32]} 34. Kg2 {[%clk 0:01:16]}  d3 {[%clk 0:01:30]} 35. Bxe5 {[%clk 0:01:14]}  fxe5 {[%clk 0:01:26]} 36. Bxd3 {[%clk 0:01:13]}  Rc8 {[%clk 0:01:20]} 37. Bxa6 {[%clk 0:01:11]}  Rc2+ {[%clk 0:01:19]} 38. Kg1 {[%clk 0:01:09]}  Rg3+ {[%clk 0:01:16]} 39. Kf1 {[%clk 0:01:07]}  Rxh3 {[%clk 0:01:16]} 40. Kg1 {[%clk 0:01:04]}  Rg3+ {[%clk 0:01:15]} 41. Kf1 {[%clk 0:01:04]}  Rxg4 {[%clk 0:01:15]} 42. Bb5 {[%clk 0:01:03]}  Rf4+ {[%clk 0:01:13]} 43. Ke1 {[%clk 0:01:03]}  Rh4 {[%clk 0:01:11]} 44. a5 {[%clk 0:01:01]}  Rh1+ {[%clk 0:01:08]} 45. Bf1 {[%clk 0:01:00]}  Ra2 {[%clk 0:01:07]} 46. Rb1 {[%clk 0:00:59]}  Kf7 {[%clk 0:01:05]} 47. a6 {[%clk 0:00:54]}  Rxa6 {[%clk 0:01:03]} 48. Kf2 {[%clk 0:00:54]}  Ra2+ {[%clk 0:01:01]} 49. Ke3 {[%clk 0:00:49]}  Kf6 {[%clk 0:01:01]} 50. Rb6 {[%clk 0:00:21]}  Rxf1 {[%clk 0:00:59]} 0-1

[Event "November 21 Early 2023"]
[Site "https://www.chess.com"]
[Date "2023.11.21"]
[Round "1"]
[White "Rose, Felix"]
[Black "Vestby-Ellingsen, Mads"]
[Result "0-1"]
[Board "184"]
[TimeControl "180+1"]
[WhiteFideId "5105722"]
[BlackFideId "1520857"]
[WhiteElo "2039"]
[BlackElo "2241"]
[WhiteTeam "MEX"]
[BlackTeam "NOR"]
[WhiteClock "0:01:56"]
[BlackClock "0:01:35"]

1. e4 {[%clk 0:03:00]}  e5 {[%clk 0:02:59]} 2. Nf3 {[%clk 0:03:00]}  Nc6 {[%clk 0:02:59]} 3. Bb5 {[%clk 0:02:58]}  a6 {[%clk 0:02:59]} 4. Ba4 {[%clk 0:02:59]}  Nge7 {[%clk 0:03:00]} 5. O-O {[%clk 0:02:58]}  g6 {[%clk 0:03:00]} 6. d4 {[%clk 0:02:53]}  exd4 {[%clk 0:03:00]} 7. Nxd4 {[%clk 0:02:52]}  Bg7 {[%clk 0:03:00]} 8. Bxc6 {[%clk 0:02:47]}  Nxc6 {[%clk 0:02:57]} 9. Nxc6 {[%clk 0:02:46]}  bxc6 {[%clk 0:02:54]} 10. c3 {[%clk 0:02:40]}  O-O {[%clk 0:02:54]} 11. f3 {[%clk 0:02:37]}  d5 {[%clk 0:02:47]} 12. Qc2 {[%clk 0:02:29]}  Be6 {[%clk 0:02:39]} 13. Rd1 {[%clk 0:02:28]}  Qe7 {[%clk 0:02:37]} 14. Nd2 {[%clk 0:02:27]}  f5 {[%clk 0:02:30]} 15. exf5 {[%clk 0:02:22]}  Bxf5 {[%clk 0:02:28]} 16. Qa4 {[%clk 0:02:20]}  Qc5+ {[%clk 0:02:06]} 17. Kh1 {[%clk 0:02:18]}  Rfe8 {[%clk 0:01:54]} 18. Nb3 {[%clk 0:02:14]}  Qf2 {[%clk 0:01:39]} 19. Bf4 {[%clk 0:02:14]}  Re2 {[%clk 0:01:36]} 20. Rg1 {[%clk 0:02:11]}  Bh3 {[%clk 0:01:35]} 21. gxh3 {[%clk 0:01:56]}  Qxf3+ {[%clk 0:01:35]} 0-1

[Event "November 21 Early 2023"]
[Site "https://www.chess.com"]
[Date "2023.11.21"]
[Round "1"]
[White "Toropov, Pavel"]
[Black "Bobomurodova, Maftuna"]
[Result "0-1"]
[Board "185"]
[TimeControl "180+1"]
[WhiteFideId "24129178"]
[BlackFideId "14207400"]
[WhiteElo "2182"]
[BlackElo "1814"]
[WhiteTeam "RUS"]
[BlackTeam "UZB"]
[WhiteClock "0:00:17"]
[BlackClock "0:01:01"]

1. e4 {[%clk 0:03:00]}  e5 {[%clk 0:02:59]} 2. Nf3 {[%clk 0:03:01]}  Nc6 {[%clk 0:02:58]} 3. d4 {[%clk 0:03:01]}  exd4 {[%clk 0:02:58]} 4. Nxd4 {[%clk 0:03:02]}  Nf6 {[%clk 0:02:57]} 5. Nc3 {[%clk 0:03:00]}  Bb4 {[%clk 0:02:55]} 6. Nxc6 {[%clk 0:02:59]}  bxc6 {[%clk 0:02:54]} 7. Bd3 {[%clk 0:02:59]}  d5 {[%clk 0:02:54]} 8. exd5 {[%clk 0:03:00]}  cxd5 {[%clk 0:02:54]} 9. O-O {[%clk 0:03:00]}  O-O {[%clk 0:02:53]} 10. Bg5 {[%clk 0:03:01]}  c6 {[%clk 0:02:52]} 11. Qf3 {[%clk 0:02:59]}  Be7 {[%clk 0:02:47]} 12. h3 {[%clk 0:02:59]}  Re8 {[%clk 0:02:44]} 13. Rfe1 {[%clk 0:02:55]}  h6 {[%clk 0:02:39]} 14. Bf4 {[%clk 0:02:53]}  Be6 {[%clk 0:02:37]} 15. b3 {[%clk 0:02:49]}  Bd6 {[%clk 0:02:36]} 16. Na4 {[%clk 0:02:41]}  Rb8 {[%clk 0:02:18]} 17. Re2 {[%clk 0:02:28]}  c5 {[%clk 0:02:12]} 18. Rd1 {[%clk 0:02:04]}  Qc7 {[%clk 0:02:05]} 19. Bxh6 {[%clk 0:01:01]}  c4 {[%clk 0:01:53]} 20. Bf5 {[%clk 0:00:42]}  Bxf5 {[%clk 0:01:49]} 21. Rxe8+ {[%clk 0:00:38]}  Nxe8 {[%clk 0:01:48]} 22. Qxf5 {[%clk 0:00:38]}  gxh6 {[%clk 0:01:47]} 23. Rxd5 {[%clk 0:00:34]}  Rd8 {[%clk 0:01:42]} 24. Qg4+ {[%clk 0:00:33]}  Ng7 {[%clk 0:01:38]} 25. bxc4 {[%clk 0:00:32]}  Be7 {[%clk 0:01:31]} 26. Nc3 {[%clk 0:00:31]}  Bf6 {[%clk 0:01:28]} 27. Ne4 {[%clk 0:00:30]}  Be5 {[%clk 0:01:23]} 28. f4 {[%clk 0:00:28]}  Bd4+ {[%clk 0:01:21]} 29. Kh2 {[%clk 0:00:23]}  f5 {[%clk 0:01:07]} 30. Qh4 {[%clk 0:00:17]}  Rxd5 {[%clk 0:01:04]} 31. cxd5 {[%clk 0:00:18]}  fxe4 {[%clk 0:01:04]} 32. Qxh6 {[%clk 0:00:18]}  Be3 {[%clk 0:01:02]} 33. g3 {[%clk 0:00:17]}  Qxc2+ {[%clk 0:01:02]} 34. Kh1 {[%clk 0:00:18]}  Qd1+ {[%clk 0:01:02]} 35. Kg2 {[%clk 0:00:17]}  Qe2+ {[%clk 0:01:01]} 0-1

[Event "November 21 Early 2023"]
[Site "https://www.chess.com"]
[Date "2023.11.21"]
[Round "1"]
[White "AndresDelgado77"]
[Black "Skatchkov, Valery"]
[Result "0-1"]
[Board "186"]
[TimeControl "180+1"]
[BlackFideId "24195812"]
[WhiteElo "2295"]
[BlackElo "2320"]
[BlackTeam "RUS"]
[WhiteClock "0:00:00"]
[BlackClock "0:00:30"]

1. e4 {[%clk 0:02:59]}  e5 {[%clk 0:02:59]} 2. Nc3 {[%clk 0:02:59]}  Nf6 {[%clk 0:02:59]} 3. d4 {[%clk 0:02:58]}  exd4 {[%clk 0:02:58]} 4. Qxd4 {[%clk 0:02:59]}  Nc6 {[%clk 0:02:59]} 5. Qc4 {[%clk 0:02:59]}  Nb4 {[%clk 0:02:07]} 6. Qb3 {[%clk 0:02:49]}  d5 {[%clk 0:01:45]} 7. a3 {[%clk 0:02:44]}  d4 {[%clk 0:01:44]} 8. axb4 {[%clk 0:02:09]}  dxc3 {[%clk 0:01:42]} 9. Bc4 {[%clk 0:02:02]}  Qe7 {[%clk 0:01:40]} 10. f3 {[%clk 0:01:40]}  cxb2 {[%clk 0:01:38]} 11. Bxb2 {[%clk 0:01:35]}  Qxb4+ {[%clk 0:01:39]} 12. Bc3 {[%clk 0:01:32]}  Qxb3 {[%clk 0:01:36]} 13. Bxb3 {[%clk 0:01:32]}  Be7 {[%clk 0:01:35]} 14. g4 {[%clk 0:01:26]}  O-O {[%clk 0:01:34]} 15. h4 {[%clk 0:01:25]}  Be6 {[%clk 0:01:30]} 16. h5 {[%clk 0:01:20]}  h6 {[%clk 0:01:24]} 17. Ne2 {[%clk 0:01:19]}  Bxb3 {[%clk 0:01:20]} 18. cxb3 {[%clk 0:01:19]}  Rfd8 {[%clk 0:01:21]} 19. Nd4 {[%clk 0:01:13]}  Bb4 {[%clk 0:01:00]} 20. Bxb4 {[%clk 0:00:45]}  Rxd4 {[%clk 0:01:01]} 21. Bc5 {[%clk 0:00:37]}  Rd3 {[%clk 0:01:01]} 22. Ke2 {[%clk 0:00:37]}  Rad8 {[%clk 0:00:47]} 23. Be3 {[%clk 0:00:24]}  Rxb3 {[%clk 0:00:42]} 24. Rhd1 {[%clk 0:00:13]}  Rxd1 {[%clk 0:00:37]} 25. Rxd1 {[%clk 0:00:12]}  Kf8 {[%clk 0:00:34]} 26. Bxa7 {[%clk 0:00:06]}  b6 {[%clk 0:00:31]} 27. Bb8 {[%clk 0:00:05]}  Rc3 {[%clk 0:00:29]} 28. Rd8+ {[%clk 0:00:04]}  Ke7 {[%clk 0:00:30]} 29. Rc8 {[%clk 0:00:00]}  Ne8 {[%clk 0:00:30]} 0-1

[Event "November 21 Early 2023"]
[Site "https://www.chess.com"]
[Date "2023.11.21"]
[Round "1"]
[White "Bettalli, Francesco"]
[Black "Minina, Veronika"]
[Result "1-0"]
[Board "193"]
[TimeControl "180+1"]
[WhiteFideId "2816453"]
[BlackFideId "4174780"]
[WhiteElo "2226"]
[BlackElo "1905"]
[WhiteTeam "ITA"]
[BlackTeam "RUS"]
[WhiteClock "0:01:42"]
[BlackClock "0:00:00"]

1. d4 {[%clk 0:02:59]}  Nf6 {[%clk 0:02:59]} 2. Nf3 {[%clk 0:02:55]}  g6 {[%clk 0:03:00]} 3. b3 {[%clk 0:02:55]}  Bg7 {[%clk 0:03:01]} 4. Bb2 {[%clk 0:02:56]}  O-O {[%clk 0:03:02]} 5. e3 {[%clk 0:02:56]}  c5 {[%clk 0:03:02]} 6. Nbd2 {[%clk 0:02:57]}  Nc6 {[%clk 0:03:00]} 7. Bd3 {[%clk 0:02:58]}  cxd4 {[%clk 0:02:59]} 8. exd4 {[%clk 0:02:59]}  d5 {[%clk 0:02:58]} 9. O-O {[%clk 0:02:59]}  Bg4 {[%clk 0:02:56]} 10. h3 {[%clk 0:02:59]}  Bxf3 {[%clk 0:02:36]} 11. Nxf3 {[%clk 0:02:59]}  Ne4 {[%clk 0:02:37]} 12. Qe2 {[%clk 0:02:55]}  Qb6 {[%clk 0:02:23]} 13. Bxe4 {[%clk 0:02:54]}  dxe4 {[%clk 0:02:24]} 14. Qxe4 {[%clk 0:02:54]}  e6 {[%clk 0:02:21]} 15. Rad1 {[%clk 0:02:53]}  Rad8 {[%clk 0:02:16]} 16. c4 {[%clk 0:02:53]}  Rd7 {[%clk 0:01:51]} 17. Rd2 {[%clk 0:02:43]}  Rfd8 {[%clk 0:01:50]} 18. Rfd1 {[%clk 0:02:44]}  Qb4 {[%clk 0:01:33]} 19. Qe3 {[%clk 0:02:36]}  a5 {[%clk 0:01:23]} 20. Bc3 {[%clk 0:02:33]}  Qb6 {[%clk 0:01:17]} 21. h4 {[%clk 0:02:29]}  Nb4 {[%clk 0:00:47]} 22. h5 {[%clk 0:02:17]}  a4 {[%clk 0:00:21]} 23. a3 {[%clk 0:02:07]}  Nc6 {[%clk 0:00:14]} 24. b4 {[%clk 0:02:07]}  Qc7 {[%clk 0:00:11]} 25. hxg6 {[%clk 0:02:03]}  hxg6 {[%clk 0:00:11]} 26. d5 {[%clk 0:01:49]}  exd5 {[%clk 0:00:11]} 27. cxd5 {[%clk 0:01:50]}  Ne7 {[%clk 0:00:07]} 28. Bxg7 {[%clk 0:01:48]}  Kxg7 {[%clk 0:00:08]} 29. d6 {[%clk 0:01:42]}  Rxd6 {[%clk 0:00:00]} 30. Rxd6 {[%clk 0:01:42]} 1-0

[Event "November 21 Early 2023"]
[Site "https://www.chess.com"]
[Date "2023.11.21"]
[Round "1"]
[White "cycygogne"]
[Black "Predator0608"]
[Result "0-1"]
[Board "194"]
[TimeControl "180+1"]
[WhiteElo "2274"]
[BlackElo "2579"]
[WhiteClock "0:00:15"]
[BlackClock "0:00:12"]

1. Nf3 {[%clk 0:02:59]}  d5 {[%clk 0:02:55]} 2. b3 {[%clk 0:02:59]}  Nf6 {[%clk 0:02:54]} 3. Bb2 {[%clk 0:02:59]}  e6 {[%clk 0:02:53]} 4. e3 {[%clk 0:02:59]}  Be7 {[%clk 0:02:53]} 5. Be2 {[%clk 0:02:57]}  O-O {[%clk 0:02:53]} 6. O-O {[%clk 0:02:58]}  c5 {[%clk 0:02:52]} 7. Ne5 {[%clk 0:02:56]}  Nc6 {[%clk 0:02:51]} 8. f4 {[%clk 0:02:56]}  Ne4 {[%clk 0:02:47]} 9. d3 {[%clk 0:02:52]}  Nd6 {[%clk 0:02:46]} 10. Nd2 {[%clk 0:02:50]}  f6 {[%clk 0:02:41]} 11. Nxc6 {[%clk 0:02:50]}  bxc6 {[%clk 0:02:42]} 12. e4 {[%clk 0:02:43]}  Qc7 {[%clk 0:02:28]} 13. Kh1 {[%clk 0:02:40]}  Bd7 {[%clk 0:02:06]} 14. Qe1 {[%clk 0:02:40]}  Rab8 {[%clk 0:01:56]} 15. Qg3 {[%clk 0:02:34]}  a5 {[%clk 0:01:49]} 16. a4 {[%clk 0:02:28]}  Kh8 {[%clk 0:01:39]} 17. Rae1 {[%clk 0:02:22]}  Rb4 {[%clk 0:01:27]} 18. Bc3 {[%clk 0:02:13]}  Rbb8 {[%clk 0:01:24]} 19. Bg4 {[%clk 0:02:02]}  Rf7 {[%clk 0:01:10]} 20. Qh3 {[%clk 0:01:57]}  d4 {[%clk 0:01:02]} 21. Bb2 {[%clk 0:01:54]}  f5 {[%clk 0:01:00]} 22. Bh5 {[%clk 0:01:48]}  Rff8 {[%clk 0:00:55]} 23. Ba3 {[%clk 0:01:43]}  Nb7 {[%clk 0:00:33]} 24. Bg6 {[%clk 0:01:37]}  h6 {[%clk 0:00:32]} 25. exf5 {[%clk 0:01:37]}  Nd8 {[%clk 0:00:18]} 26. Nc4 {[%clk 0:01:26]}  Bd6 {[%clk 0:00:16]} 27. Ne5 {[%clk 0:01:16]}  exf5 {[%clk 0:00:13]} 28. Bh5 {[%clk 0:01:02]}  Kg8 {[%clk 0:00:14]} 29. Ng6 {[%clk 0:00:45]}  Rf6 {[%clk 0:00:13]} 30. Qg3 {[%clk 0:00:43]}  Ne6 {[%clk 0:00:10]} 31. Bb2 {[%clk 0:00:31]}  Be8 {[%clk 0:00:11]} 32. Re2 {[%clk 0:00:28]}  Bxg6 {[%clk 0:00:11]} 33. Bxg6 {[%clk 0:00:29]}  Nxf4 {[%clk 0:00:12]} 34. Rxf4 {[%clk 0:00:22]}  Bxf4 {[%clk 0:00:13]} 35. Qf2 {[%clk 0:00:23]}  Rxg6 {[%clk 0:00:13]} 36. g3 {[%clk 0:00:23]}  Be3 {[%clk 0:00:13]} 37. Qxf5 {[%clk 0:00:22]}  Rf6 {[%clk 0:00:14]} 38. Qe4 {[%clk 0:00:19]}  Rbf8 {[%clk 0:00:14]} 39. Re1 {[%clk 0:00:18]}  Rf1+ {[%clk 0:00:14]} 40. Rxf1 {[%clk 0:00:18]}  Rxf1+ {[%clk 0:00:15]} 41. Kg2 {[%clk 0:00:19]}  Rg1+ {[%clk 0:00:16]} 42. Kh3 {[%clk 0:00:20]}  Qd7+ {[%clk 0:00:16]} 43. g4 {[%clk 0:00:20]}  Qf7 {[%clk 0:00:14]} 44. Qxc6 {[%clk 0:00:18]}  Qf1+ {[%clk 0:00:13]} 45. Kh4 {[%clk 0:00:17]}  Bg5+ {[%clk 0:00:13]} 46. Kh5 {[%clk 0:00:15]}  Qf7+ {[%clk 0:00:12]} 0-1

[Event "November 21 Early 2023"]
[Site "https://www.chess.com"]
[Date "2023.11.21"]
[Round "1"]
[White "Manukyan, Sargis A."]
[Black "Andersson, Bjorn 1971"]
[Result "1-0"]
[Board "195"]
[TimeControl "180+1"]
[WhiteFideId "13303970"]
[BlackFideId "1702114"]
[WhiteElo "2204"]
[BlackElo "2172"]
[WhiteTeam "ARM"]
[BlackTeam "SWE"]
[WhiteClock "0:01:42"]
[BlackClock "0:02:32"]

1. d4 {[%clk 0:03:00]}  c5 {[%clk 0:02:59]} 2. d5 {[%clk 0:03:00]}  g6 {[%clk 0:02:59]} 3. c4 {[%clk 0:02:59]}  Bg7 {[%clk 0:03:00]} 4. Nc3 {[%clk 0:02:59]}  Na6 {[%clk 0:03:00]} 5. Nf3 {[%clk 0:02:57]}  d6 {[%clk 0:03:01]} 6. g3 {[%clk 0:02:55]}  Bd7 {[%clk 0:03:01]} 7. Bg2 {[%clk 0:02:54]}  Nc7 {[%clk 0:03:00]} 8. O-O {[%clk 0:02:55]}  a6 {[%clk 0:03:01]} 9. a4 {[%clk 0:02:54]}  b5 {[%clk 0:03:01]} 10. axb5 {[%clk 0:02:54]}  axb5 {[%clk 0:03:02]} 11. Rxa8 {[%clk 0:02:54]}  Qxa8 {[%clk 0:03:02]} 12. cxb5 {[%clk 0:02:55]}  Nxb5 {[%clk 0:03:01]} 13. Bd2 {[%clk 0:02:54]}  Nf6 {[%clk 0:03:00]} 14. Nxb5 {[%clk 0:02:48]}  Bxb5 {[%clk 0:02:59]} 15. Bc3 {[%clk 0:02:48]}  O-O {[%clk 0:02:58]} 16. Nh4 {[%clk 0:02:37]}  Bc4 {[%clk 0:02:47]} 17. b3 {[%clk 0:02:24]}  Bxd5 {[%clk 0:02:45]} 18. Bxf6 {[%clk 0:02:24]}  Bxg2 {[%clk 0:02:45]} 19. Bxg7 {[%clk 0:02:23]}  Bxf1 {[%clk 0:02:45]} 20. Bxf8 {[%clk 0:02:23]}  Bh3 {[%clk 0:02:41]} 21. Bxe7 {[%clk 0:02:20]}  Kg7 {[%clk 0:02:41]} 22. Bxd6 {[%clk 0:02:05]}  g5 {[%clk 0:02:41]} 23. Nf3 {[%clk 0:02:03]}  g4 {[%clk 0:02:41]} 24. Nh4 {[%clk 0:02:03]}  Qa3 {[%clk 0:02:37]} 25. Be5+ {[%clk 0:02:01]}  f6 {[%clk 0:02:34]} 26. Qd7+ {[%clk 0:02:00]}  Kf8 {[%clk 0:02:33]} 27. Bd6+ {[%clk 0:01:40]}  Kg8 {[%clk 0:02:32]} 28. Qe8+ {[%clk 0:01:41]}  Kg7 {[%clk 0:02:32]} 29. Nf5# {[%clk 0:01:42]} 1-0